fUST/lending_fUST_20260220
["ID","MTS","AMOUNT","RATE_DAILY","PERIOD"]
[406176045,1771593999732,-174.41587943,0.00032876,19]
[406176046,1771593999756,-500.0,0.00032876,19]
[406176047,1771593999779,-548.92063006,0.00032876,19]
[406176048,1771593999802,-500.0,0.00032876,19]
[406176049,1771593999825,-5061.2,0.00032876,19]
[406176050,1771593999847,-500.0,0.00032876,19]
[406176051,1771593999871,-4318.62,0.00032876,19]
[406176052,1771593999893,-509.08496945,0.00032876,19]
[406176053,1771593999916,-585.08687091,0.00032876,19]
[406176054,1771593999939,-551.6212109,0.00032876,19]
[406176055,1771593999962,-218.71966028,0.00032876,19]
[406176056,1771593999985,-500.0,0.00032876,19]
[406176057,1771594000008,-6927.38,0.00032876,19]
[406176058,1771594000031,-190.73646374,0.00032876,19]
[406176059,1771594000053,-591.78329044,0.00032876,19]
[406176060,1771594000076,-2746.71,0.00032876,19]
[406176061,1771594000099,-500.0,0.00032876,19]
[406176062,1771594000122,-519.95173694,0.00032876,19]
[406176063,1771594000145,-500.0,0.00032876,19]
[406176064,1771594000167,-557.68281148,0.00032876,19]
[406176065,1771594000190,-1176.09,0.00032877,10]
[406176066,1771594000213,-2242.72,0.00032877,10]
[406176067,1771594000236,-2500.0,0.00033,4]
[406176068,1771594000259,-743.73449086,0.00033,7]
[406176069,1771594000281,-743.73449086,0.00033,3]
[406176070,1771594000308,-500.0,0.0003315,2]
[406176071,1771594000331,-894.4893504,0.0003315,19]
[406176072,1771594000352,-500.0,0.0003315,19]
[406176073,1771594000375,-500.0,0.0003315,19]
[406176074,1771594000398,-506.9391646,0.0003315,19]
[406176075,1771594000421,-500.0,0.0003315,19]
[406176076,1771594000443,-537.8415921,0.0003315,19]
[406176077,1771594000467,-500.0,0.0003315,19]
[406176078,1771594000490,-500.0,0.0003315,19]
[406176079,1771594000512,-500.0,0.0003315,5]
[406176080,1771594000536,-500.0,0.0003315,19]
[406176081,1771594000559,-500.0,0.0003315,19]
[406176082,1771594000582,-549.59,0.0003315,19]
[406176083,1771594000701,-2247.32,0.0003315,19]
[406176084,1771594000727,-500.0,0.0003315,19]
[406176085,1771594000751,-176.28859476,0.0003315,19]
[406176086,1771594000776,-500.0,0.0003315,19]
[406176087,1771594000801,-500.0,0.0003315,19]
[406176088,1771594000826,-521.89719091,0.0003315,19]
[406176089,1771594000850,-500.0,0.0003315,7]
[406176090,1771594000874,-500.0,0.0003315,19]
[406176091,1771594000899,-500.0,0.0003315,19]
[406176092,1771594000926,-500.0,0.0003315,19]
[406176093,1771594000951,-500.0,0.0003315,2]
[406176094,1771594000976,-2003.15,0.0003315,7]
[406176095,1771594001000,-500.0,0.0003315,19]
[406176096,1771594001024,-500.0,0.0003315,2]
[406176097,1771594001048,-1393.9,0.0003315,2]
[406176098,1771594001073,-1000.0,0.0003315,2]
[406176099,1771594001098,-501.97778087,0.0003315,19]
[406176100,1771594001120,-500.0,0.0003315,19]
[406176101,1771594001144,-500.0,0.0003315,19]
[406176102,1771594001169,-2106.9,0.0003315,19]
[406176103,1771594001192,-500.0,0.0003315,19]
[406176104,1771594001215,-500.0,0.0003315,19]
[406176105,1771594001238,-500.0,0.0003315,19]
[406176106,1771594001262,-500.0,0.0003315,19]
[406176107,1771594001286,-773.88,0.0003315,19]
[406176108,1771594001310,-500.0,0.0003315,19]
[406176109,1771594001335,-500.0,0.0003315,19]
[406176110,1771594001359,-500.0,0.0003315,19]
[406176111,1771594001383,-928.67,0.0003315,19]
[406176112,1771594001407,-552.46,0.0003315,19]
[406176113,1771594001430,-500.0,0.0003315,19]
[406176114,1771594001455,-500.0,0.0003315,19]
[406176115,1771594001478,-18920.35,0.0003315,19]
[406176116,1771594001502,-4842.82,0.0003315,19]
[406176117,1771594001526,-500.0,0.0003315,19]
[406176118,1771594001550,-500.0,0.0003315,19]
[406176119,1771594001573,-500.0,0.0003315,19]
[406176120,1771594001598,-370.87009148,0.0003315,19]
[406176121,1771594001621,-500.0,0.0003315,19]
[406176122,1771594001647,-571.3996208,0.0003315,19]
[406176123,1771594001673,-1000.0,0.0003315,2]
[406176124,1771594001697,-890.82,0.0003315,19]
[406176125,1771594001722,-500.0,0.0003315,19]
[406176126,1771594001745,-500.0,0.0003315,19]
[406176127,1771594001769,-500.0,0.0003315,19]
[406176128,1771594001793,-500.0,0.0003315,19]
[406176129,1771594001816,-500.0,0.0003315,19]
[406176130,1771594001840,-659.01,0.0003315,19]
[406176131,1771594001862,-500.0,0.0003315,19]
[406176132,1771594001885,-920.21,0.0003315,19]
[406176133,1771594001910,-500.0,0.0003315,19]
[406176134,1771594001939,-500.0,0.0003315,19]
[406176135,1771594001969,-538.87093951,0.0003315,19]
[406176136,1771594001998,-2084.54,0.0003315,19]
[406176137,1771594002026,-159.07869352,0.0003315,19]
[406176138,1771594002055,-563.55,0.0003315,19]
[406176139,1771594002085,-2735.31,0.0003315,19]
[406176140,1771594002114,-500.0,0.0003315,19]
[406176141,1771594002144,-500.0,0.0003315,19]
[406176142,1771594002174,-500.0,0.0003315,19]
[406176143,1771594002203,-2759.18,0.0003315,19]
[406176144,1771594002234,-500.0,0.0003315,19]
[406176145,1771594002265,-19809.93,0.0003315,19]
[406176146,1771594002295,-280.89706363,0.0003315,19]
[406176147,1771594002324,-500.0,0.0003315,19]
[406176148,1771594002350,-500.0,0.0003315,19]
[406176149,1771594002378,-186.4298623,0.0003315,19]
[406176150,1771594002408,-500.0,0.0003315,19]
[406176151,1771594002436,-279.73625646,0.0003315,19]
[406176152,1771594002468,-186.2793762,0.0003315,19]
[406176153,1771594002498,-240.75271096,0.0003315,19]
[406176154,1771594002530,-7496.04,0.0003315,19]
[406176155,1771594002560,-500.0,0.0003315,19]
[406176156,1771594002587,-166.42880934,0.0003315,19]
[406176157,1771594002618,-500.0,0.0003315,19]
[406176158,1771594002652,-3608.52,0.0003315,19]
[406176159,1771594002682,-197.22705026,0.0003315,19]
[406176160,1771594002711,-592.24003015,0.0003315,19]
[406176161,1771594002740,-500.0,0.0003315,19]
[406176162,1771594002767,-1250.41,0.0003315,19]
[406176163,1771594002794,-264.84212694,0.0003315,19]
[406176164,1771594002821,-478.28319869,0.0003315,19]
[406176165,1771594002850,-954.01,0.0003315,19]
[406176166,1771594002878,-432.64486291,0.0003315,19]
[406176167,1771594002905,-500.0,0.0003315,19]
[406176168,1771594002933,-5061.2,0.0003315,19]
[406176169,1771594002961,-513.67087041,0.0003315,19]
[406176170,1771594002987,-4318.62,0.0003315,19]
[406176171,1771594003014,-500.0,0.0003315,19]
[406176172,1771594003043,-6927.38,0.0003315,19]
[406176173,1771594003070,-2746.71,0.0003315,19]
[406176174,1771594003098,-500.0,0.0003315,19]
[406176175,1771594003128,-500.0,0.0003315,19]
[406176176,1771594003156,-156.79,0.000334,7]
[406176177,1771594003183,-71442.62099264,0.0003342,2]
[406176178,1771594003211,-151.0,0.0003342,31]
[406176179,1771594003237,-500.0,0.00033424,2]
[406176180,1771594003265,-894.4893504,0.00033424,19]
[406176181,1771594003292,-500.0,0.00033424,19]
[406176182,1771594003319,-500.0,0.00033424,19]
[406176183,1771594003476,-500.0,0.00033424,19]
[406176184,1771594003505,-500.0,0.00033424,19]
[406176185,1771594003529,-500.0,0.00033424,19]
[406176186,1771594003553,-502.19515479,0.00033424,5]
[406176187,1771594003576,-237.18910872,0.00033424,19]
[406176188,1771594003600,-549.59,0.00033424,19]
[406176189,1771594003623,-2247.32,0.00033424,19]
[406176190,1771594003647,-575.84305016,0.00033424,19]
[406176191,1771594003671,-500.0,0.00033424,19]
[406176192,1771594003695,-500.0,0.00033424,19]
[406176193,1771594003720,-151.19931178,0.00033424,7]
[406176194,1771594003744,-638.18505101,0.00033424,19]
[406176195,1771594003768,-500.0,0.00033424,19]
[406176196,1771594003791,-503.56203398,0.00033424,19]
[406176197,1771594003814,-500.0,0.00033424,2]
[406176198,1771594003836,-2003.15,0.00033424,7]
[406176199,1771594003858,-500.0,0.00033424,19]
[406176200,1771594003882,-500.0,0.00033424,2]
[406176201,1771594003904,-1393.9,0.00033424,2]
[406176202,1771594003928,-1000.0,0.00033424,2]
[406176203,1771594003952,-500.0,0.00033424,19]
[406176204,1771594003977,-500.0,0.00033424,19]
[406176205,1771594004000,-2106.9,0.00033424,19]
[406176206,1771594004025,-500.0,0.00033424,19]
[406176207,1771594004049,-500.0,0.00033424,19]
[406176208,1771594004072,-500.0,0.00033424,19]
[406176209,1771594004094,-500.0,0.00033424,19]
[406176210,1771594004118,-773.88,0.00033424,19]
[406176211,1771594004141,-530.92445863,0.00033424,19]
[406176212,1771594004164,-500.0,0.00033424,19]
[406176213,1771594004188,-500.0,0.00033424,19]
[406176214,1771594004212,-928.67,0.00033424,19]
[406176215,1771594004235,-552.46,0.00033424,19]
[406176216,1771594004259,-500.0,0.00033424,19]
[406176217,1771594004284,-500.0,0.00033424,19]
[406176218,1771594004307,-18920.35,0.00033424,19]
[406176219,1771594004344,-4842.82,0.00033424,19]
[406176220,1771594004368,-500.0,0.00033424,19]
[406176221,1771594004391,-500.0,0.00033424,19]
[406176222,1771594004414,-554.88319956,0.00033424,19]
[406176223,1771594004438,-500.0,0.00033424,19]
[406176224,1771594004460,-1000.0,0.00033424,2]
[406176225,1771594004483,-890.82,0.00033424,19]
[406176226,1771594004506,-500.0,0.00033424,19]
[406176227,1771594004528,-500.0,0.00033424,19]
[406176228,1771594004552,-500.0,0.00033424,19]
[406176229,1771594004575,-500.0,0.00033424,19]
[406176230,1771594004598,-500.0,0.00033424,19]
[406176231,1771594004622,-659.01,0.00033424,19]
[406176232,1771594004648,-500.0,0.00033424,19]
[406176233,1771594004673,-920.21,0.00033424,19]
[406176234,1771594004698,-500.0,0.00033424,19]
[406176235,1771594004722,-500.0,0.00033424,19]
[406176236,1771594004746,-2084.54,0.00033424,19]
[406176237,1771594004769,-563.55,0.00033424,19]
[406176238,1771594004792,-2735.31,0.00033424,19]
[406176239,1771594004815,-500.0,0.00033424,19]
[406176240,1771594004837,-582.97915779,0.00033424,19]
[406176241,1771594004861,-196.00423363,0.00033424,19]
[406176242,1771594004885,-2759.18,0.00033424,19]
[406176243,1771594004911,-500.0,0.00033424,19]
[406176244,1771594004938,-19809.93,0.00033424,19]
[406176245,1771594004961,-342.53068247,0.00033424,19]
[406176246,1771594004985,-281.60194855,0.00033424,19]
[406176247,1771594005009,-500.0,0.00033424,19]
[406176248,1771594005032,-7496.04,0.00033424,19]
[406176249,1771594005057,-209.95584458,0.00033424,19]
[406176250,1771594005080,-500.0,0.00033424,19]
[406176251,1771594005106,-3608.52,0.00033424,19]
[406176252,1771594005130,-500.0,0.00033424,19]
[406176253,1771594005153,-1250.41,0.00033424,19]
[406176254,1771594005179,-954.01,0.00033424,19]
[406176255,1771594005201,-500.0,0.00033424,19]
[406176256,1771594005225,-5061.2,0.00033424,19]
[406176257,1771594005248,-4318.62,0.00033424,19]
[406176258,1771594005271,-500.0,0.00033424,19]
[406176259,1771594005295,-6927.38,0.00033424,19]
[406176260,1771594005319,-2746.71,0.00033424,19]
[406176261,1771594005344,-500.0,0.00033424,19]
[406176262,1771594005379,-500.0,0.00033424,19]
[406176263,1771594005403,-500.0,0.00033698,2]
[406176264,1771594005428,-745.93746953,0.00033698,19]
[406176265,1771594005452,-500.0,0.00033698,19]
[406176266,1771594005475,-500.0,0.00033698,19]
[406176267,1771594005499,-500.0,0.00033698,19]
[406176268,1771594005522,-500.0,0.00033698,19]
[406176269,1771594005546,-500.0,0.00033698,19]
[406176270,1771594005571,-305.09554737,0.00033698,19]
[406176271,1771594005594,-549.59,0.00033698,19]
[406176272,1771594005618,-2247.32,0.00033698,19]
[406176273,1771594005645,-500.0,0.00033698,19]
[406176274,1771594005669,-500.0,0.00033698,19]
[406176275,1771594005694,-500.0,0.00033698,19]
[406176276,1771594005722,-500.0,0.00033698,2]
[406176277,1771594005746,-2003.15,0.00033698,7]
[406176278,1771594005769,-500.0,0.00033698,19]
[406176279,1771594005793,-500.0,0.00033698,2]
[406176280,1771594005827,-1393.9,0.00033698,2]
[406176281,1771594005853,-1000.0,0.00033698,2]
[406176282,1771594005878,-500.0,0.00033698,19]
[406176283,1771594005902,-500.0,0.00033698,19]
[406176284,1771594005925,-2106.9,0.00033698,19]
[406176285,1771594005949,-500.0,0.00033698,19]
[406176286,1771594005973,-252.35893798,0.00033698,19]
[406176287,1771594005996,-253.3696399,0.00033698,19]
[406176288,1771594006021,-500.0,0.00033698,19]
[406176289,1771594006045,-773.88,0.00033698,19]
[406176290,1771594006072,-416.96274483,0.00033698,19]
[406176291,1771594006235,-500.0,0.00033698,19]
[406176292,1771594006261,-928.67,0.00033698,19]
[406176293,1771594006285,-552.46,0.00033698,19]
[406176294,1771594006311,-355.06990019,0.00033698,19]
[406176312,1771594231706,-14347.82642961,0.00018,2]
[406176313,1771594231720,-941.661391,0.00018,2]
[406176341,1771594237860,-2606.77159535,0.00018,2]
[406176342,1771594237872,-2105.99152475,0.00018,2]
[406176924,1771594249211,-32397.46804475,0.00018,2]
[406176925,1771594263056,-13540.50439742,0.00018,2]
[406176926,1771594263066,-157.20174574,0.00018058,2]
[406176927,1771594263076,-427.09310838,0.00018159,3]
[406176928,1771594263085,-300.0,0.00018359,2]
[406176929,1771594263095,-300.0,0.00018359,2]
[406176930,1771594263104,-300.0,0.00018359,2]
[406176931,1771594263196,-300.0,0.00018359,2]
[406176932,1771594263207,-300.0,0.00018359,2]
[406176933,1771594263217,-300.0,0.00018359,2]
[406176934,1771594263226,-300.0,0.00018359,2]
[406176935,1771594263235,-300.0,0.00018359,2]
[406176936,1771594263245,-300.0,0.00018359,2]
[406176937,1771594263254,-300.0,0.00018359,2]
[406176938,1771594263264,-300.0,0.00018359,2]
[406176939,1771594263274,-300.0,0.00018359,2]
[406176940,1771594263283,-300.0,0.00018359,2]
[406176941,1771594263293,-300.0,0.00018359,2]
[406176942,1771594263302,-300.0,0.00018359,2]
[406176943,1771594263311,-600.0,0.00018359,2]
[406176944,1771594263320,-743.73449086,0.00019669,2]
[406176945,1771594263330,-720.0,0.00020195,2]
[406176946,1771594263339,-168.0,0.00020323,2]
[406176947,1771594263348,-168.0,0.00020463,2]
[406176948,1771594263360,-168.0,0.00020855,2]
[406176949,1771594263370,-168.0,0.00021619,2]
[406176950,1771594263379,-864.0,0.00022214,10]
[406176951,1771594263388,-168.0,0.00022357,2]
[406176952,1771594263402,-288.94831664,0.00023,3]
[406176953,1771594263412,-1000.0,0.00024436,10]
[406176954,1771594263421,-12030.04560953,0.000256,2]
[406176955,1771594263431,-1598.63460976,0.00026,30]
[406176956,1771594263440,-1000.0,0.00026879,30]
[406176957,1771594263450,-244.0,0.00026879,30]
[406176958,1771594263459,-53284.71978147,0.00028806,2]
[406176959,1771594263469,-1000.0,0.00029567,30]
[406176960,1771594263478,-492.0,0.00029567,30]
[406176961,1771594263487,-3682.68626525,0.0003139,2]
[406176962,1771594263496,-1000.0,0.00032524,30]
[406176963,1771594263506,-791.0,0.00032524,30]
[406176964,1771594263516,-318.03697537,0.00032687,2]
[406176965,1771594263525,-500.0,0.00032876,19]
[406176966,1771594263534,-500.0,0.00032876,19]
[406176967,1771594263544,-500.0,0.00032876,19]
[406176968,1771594263553,-576.64,0.00032876,19]
[406176969,1771594263564,-805.18,0.00032876,19]
[406176970,1771594263573,-779.46,0.00032876,19]
[406176971,1771594263582,-1823.98,0.00032876,19]
[406176972,1771594263591,-500.0,0.00032876,19]
[406176973,1771594263601,-500.0,0.00032876,19]
[406176974,1771594263612,-2393.4,0.00032876,19]
[406176975,1771594263621,-500.0,0.00032876,19]
[406176976,1771594263630,-2414.28,0.00032876,19]
[406176977,1771594263640,-500.0,0.00032876,2]
[406176978,1771594263649,-500.0,0.00032876,19]
[406176979,1771594263659,-500.0,0.00032876,19]
[406176980,1771594263669,-999.0,0.00032876,120]
[406176981,1771594263678,-500.0,0.00032876,19]
[406176982,1771594263687,-500.0,0.00032876,19]
[406176983,1771594263697,-22546.83,0.00032876,19]
[406176984,1771594263706,-500.0,0.00032876,19]
[406176985,1771594263715,-3157.46,0.00032876,19]
[406176986,1771594263728,-500.0,0.00032876,19]
[406176987,1771594263738,-500.0,0.00032876,19]
[406176988,1771594263747,-1094.11,0.00032876,19]
[406176989,1771594263757,-834.76,0.00032876,19]
[406176990,1771594263767,-6559.03,0.00032876,19]
[406176991,1771594263776,-4428.55,0.00032876,19]
[406176992,1771594263785,-3045.11,0.00032876,19]
[406176993,1771594263797,-3778.79,0.00032876,19]
[406176994,1771594263807,-2403.38,0.00032876,19]
[406176995,1771594263815,-500.0,0.00032876,2]
[406176996,1771594263825,-6061.45,0.00032876,19]
[406176997,1771594263834,-1161.59,0.00032876,2]
[406176998,1771594263844,-644.9,0.00032876,19]
[406176999,1771594263853,-773.9,0.00032876,19]
[406177000,1771594263864,-500.0,0.00032876,19]
[406177001,1771594263873,-4237.47,0.00032876,19]
[406177002,1771594263883,-500.0,0.00032876,19]
[406177003,1771594263892,-500.0,0.0003315,19]
[406177004,1771594263902,-500.0,0.0003315,19]
[406177005,1771594263911,-500.0,0.0003315,19]
[406177006,1771594263921,-576.64,0.0003315,19]
[406177007,1771594263931,-805.18,0.0003315,19]
[406177008,1771594263940,-779.46,0.0003315,19]
[406177009,1771594263950,-1823.98,0.0003315,19]
[406177010,1771594263960,-500.0,0.0003315,19]
[406177011,1771594263969,-500.0,0.0003315,19]
[406177012,1771594263980,-2393.4,0.0003315,19]
[406177013,1771594263989,-500.0,0.0003315,19]
[406177014,1771594263998,-2414.28,0.0003315,19]
[406177015,1771594264008,-500.0,0.0003315,2]
[406177016,1771594264017,-398.90504279,0.0003315,19]
[406177017,1771594264027,-500.0,0.0003315,19]
[406177018,1771594264036,-500.0,0.0003315,19]
[406177019,1771594264045,-500.0,0.0003315,19]
[406177020,1771594264054,-22546.83,0.0003315,19]
[406177021,1771594264064,-500.0,0.0003315,19]
[406177022,1771594264074,-3157.46,0.0003315,19]
[406177023,1771594264084,-500.0,0.0003315,19]
[406177024,1771594264094,-500.0,0.0003315,19]
[406177025,1771594264103,-1094.11,0.0003315,19]
[406177026,1771594264113,-834.76,0.0003315,19]
[406177027,1771594264122,-6559.03,0.0003315,19]
[406177028,1771594264131,-4428.55,0.0003315,19]
[406177029,1771594264141,-3045.11,0.0003315,19]
[406177030,1771594264150,-3778.79,0.0003315,19]
[406177031,1771594264159,-2403.38,0.0003315,19]
[406177032,1771594264168,-500.0,0.0003315,2]
[406177033,1771594264177,-6061.45,0.0003315,19]
[406177034,1771594264186,-1161.59,0.0003315,2]
[406177035,1771594264195,-644.9,0.0003315,19]
[406177036,1771594264204,-773.9,0.0003315,19]
[406177037,1771594264214,-500.0,0.0003315,19]
[406177038,1771594264223,-4237.47,0.0003315,19]
[406177039,1771594264232,-500.0,0.0003315,19]
[406177040,1771594264242,-161.96,0.000332,7]
[406177041,1771594264251,-156.8,0.000332,7]
[406177042,1771594264260,-154.90952889,0.000332,117]
[406177043,1771594264269,-154.90952888,0.000332,117]
[406177044,1771594264279,-27571.91,0.000332,2]
[406177045,1771594264288,-10000.0,0.000332,120]
[406177046,1771594264297,-500.0,0.00033424,19]
[406177047,1771594264306,-500.0,0.00033424,19]
[406177048,1771594264315,-504.8464107,0.00033424,19]
[406177049,1771594264325,-576.64,0.00033424,19]
[406177050,1771594264334,-805.18,0.00033424,19]
[406177051,1771594264343,-779.46,0.00033424,19]
[406177052,1771594264354,-1823.98,0.00033424,19]
[406177053,1771594264364,-500.0,0.00033424,19]
[406177054,1771594264374,-500.0,0.00033424,19]
[406177055,1771594264383,-2393.4,0.00033424,19]
[406177056,1771594264392,-500.0,0.00033424,19]
[406177057,1771594264401,-2414.28,0.00033424,19]
[406177058,1771594264410,-411.76880937,0.00033424,2]
[406177059,1771594264419,-500.0,0.00033424,19]
[406177060,1771594264428,-500.0,0.00033424,19]
[406177061,1771594264438,-500.0,0.00033424,19]
[406177062,1771594264447,-22546.83,0.00033424,19]
[406177063,1771594264457,-500.0,0.00033424,19]
[406177064,1771594264466,-3157.46,0.00033424,19]
[406177065,1771594264476,-500.0,0.00033424,19]
[406177066,1771594264485,-500.0,0.00033424,19]
[406177067,1771594264494,-1094.11,0.00033424,19]
[406177068,1771594264503,-834.76,0.00033424,19]
[406177069,1771594264512,-6559.03,0.00033424,19]
[406177070,1771594264521,-4428.55,0.00033424,19]
[406177071,1771594264530,-3045.11,0.00033424,19]
[406177072,1771594264539,-3778.79,0.00033424,19]
[406177073,1771594264549,-2403.38,0.00033424,19]
[406177074,1771594264558,-500.0,0.00033424,2]
[406177075,1771594264567,-6061.45,0.00033424,19]
[406177076,1771594264576,-1161.59,0.00033424,2]
[406177077,1771594264586,-644.9,0.00033424,19]
[406177078,1771594264595,-773.9,0.00033424,19]
[406177079,1771594264604,-500.0,0.00033424,19]
[406177080,1771594264614,-4237.47,0.00033424,19]
[406177081,1771594264623,-500.0,0.00033424,19]
[406177082,1771594264633,-553.56630661,0.00033698,19]
[406177083,1771594264642,-500.0,0.00033698,19]
[406177084,1771594264651,-1000.0,0.00033698,2]
[406177085,1771594264660,-500.0,0.00033698,19]
[406177086,1771594264670,-500.0,0.00033698,19]
[406177087,1771594264679,-500.0,0.00033698,19]
[406177088,1771594264688,-500.0,0.00033698,19]
[406177089,1771594264698,-500.0,0.00033698,19]
[406177090,1771594264707,-500.0,0.00033698,19]
[406177091,1771594264720,-500.0,0.00033698,19]
[406177092,1771594264733,-256.23517113,0.00033698,19]
[406177093,1771594264742,-500.0,0.00033698,19]
[406177094,1771594264755,-500.0,0.00033698,19]
[406177095,1771594264767,-500.0,0.00033698,19]
[406177096,1771594264776,-500.0,0.00033698,19]
[406177097,1771594264786,-500.0,0.00033698,19]
[406177098,1771594264798,-500.0,0.00033698,19]
[406177099,1771594264807,-576.64,0.00033698,19]
[406177100,1771594264816,-805.18,0.00033698,19]
[406177101,1771594264826,-779.46,0.00033698,19]
[406177102,1771594264836,-1823.98,0.00033698,19]
[406177103,1771594264847,-500.0,0.00033698,19]
[406177104,1771594264856,-500.0,0.00033698,19]
[406177105,1771594264866,-2393.4,0.00033698,19]
[406177106,1771594264875,-322.89281281,0.00033698,19]
[406177107,1771594264885,-2414.28,0.00033698,19]
[406177108,1771594264895,-500.0,0.00033698,19]
[406177109,1771594264971,-500.0,0.00033698,19]
[406177110,1771594264988,-500.0,0.00033698,19]
[406177111,1771594264998,-22546.83,0.00033698,19]
[406177112,1771594265007,-366.02199734,0.00033698,19]
[406177113,1771594265017,-3157.46,0.00033698,19]
[406177114,1771594265025,-500.0,0.00033698,19]
[406177115,1771594265034,-500.0,0.00033698,19]
[406177116,1771594265043,-1094.11,0.00033698,19]
[406177117,1771594265053,-834.76,0.00033698,19]
[406177118,1771594265063,-6559.03,0.00033698,19]
[406177119,1771594265072,-4428.55,0.00033698,19]
[406177120,1771594265081,-3045.11,0.00033698,19]
[406177121,1771594265092,-3778.79,0.00033698,19]
[406177122,1771594265102,-2403.38,0.00033698,19]
[406177123,1771594265111,-450.64601228,0.00033698,2]
[406177124,1771594265120,-6061.45,0.00033698,19]
[406177125,1771594265130,-1161.59,0.00033698,2]
[406177126,1771594265139,-644.9,0.00033698,19]
[406177127,1771594265149,-773.9,0.00033698,19]
[406177128,1771594265159,-500.0,0.00033698,19]
[406177129,1771594265168,-4237.47,0.00033698,19]
[406177130,1771594265178,-500.0,0.00033698,19]
[406177131,1771594265187,-171.197,0.00033898,37]
[406177132,1771594265196,-501.97141506,0.00033972,2]
[406177133,1771594265205,-2247.32,0.00033972,19]
[406177134,1771594265214,-500.0,0.00033972,19]
[406177135,1771594265223,-500.0,0.00033972,19]
[406177136,1771594265232,-1000.0,0.00033972,2]
[406177137,1771594265241,-500.0,0.00033972,19]
[406177138,1771594265250,-2106.9,0.00033972,19]
[406177139,1771594265259,-566.48160226,0.00033972,19]
[406177140,1771594265268,-500.0,0.00033972,19]
[406177141,1771594265277,-552.46,0.00033972,19]
[406177142,1771594265286,-377.47527838,0.00033972,19]
[406177143,1771594265296,-1000.0,0.00033972,2]
[406177144,1771594265307,-500.0,0.00033972,19]
[406177145,1771594265317,-500.0,0.00033972,19]
[406177146,1771594265327,-500.0,0.00033972,19]
[406177147,1771594265337,-500.0,0.00033972,19]
[406177148,1771594265348,-648.28724204,0.00033972,19]
[406177149,1771594265359,-500.0,0.00033972,19]
[406177150,1771594265369,-500.0,0.00033972,19]
[406177151,1771594265378,-500.0,0.00033972,19]
[406177152,1771594265388,-500.0,0.00033972,19]
[406177153,1771594265398,-500.0,0.00033972,19]
[406177154,1771594265408,-500.0,0.00033972,19]
[406177155,1771594265419,-500.0,0.00033972,19]
[406177156,1771594265429,-500.0,0.00033972,19]
[406177157,1771594265439,-576.64,0.00033972,19]
[406177158,1771594265448,-805.18,0.00033972,19]
[406177159,1771594265458,-779.46,0.00033972,19]
[406177160,1771594265467,-1823.98,0.00033972,19]
[406177161,1771594265478,-500.0,0.00033972,19]
[406177162,1771594265488,-500.0,0.00033972,19]
[406177163,1771594265498,-2393.4,0.00033972,19]
[406177164,1771594265507,-2414.28,0.00033972,19]
[406177165,1771594265518,-500.0,0.00033972,19]
[406177166,1771594265528,-500.0,0.00033972,19]
[406177167,1771594265539,-500.0,0.00033972,19]
[406177168,1771594265548,-22546.83,0.00033972,19]
[406177169,1771594265558,-3157.46,0.00033972,19]